[Event "Titled Tuesday Blitz July 13 2021"]
[White "Gusarov, Grigory"]
[Black "Kukhmazov, Arsen"]
[WhiteFideId "24102172"]
[BlackFideId "24108260"]
[WhiteElo "2269"]
[BlackElo "2453"]
[Result "0-1"]
[Round "08"]
[TimeControl "180+1"]
[Date "2021.07.13"]
[WhiteClock "0:00:13"]
[BlackClock "0:00:55"]

1. d4 {[%clk 0:02:59]}  d5 {[%clk 0:02:57]} 2. Nf3 {[%clk 0:02:59]}  Nf6 {[%clk 0:02:57]} 3. c4 {[%clk 0:03:00]}  c6 {[%clk 0:02:58]} 4. Nc3 {[%clk 0:03:00]}  dxc4 {[%clk 0:02:57]} 5. a4 {[%clk 0:03:00]}  Bf5 {[%clk 0:02:56]} 6. Ne5 {[%clk 0:03:01]}  Nbd7 {[%clk 0:02:57]} 7. Nxc4 {[%clk 0:03:00]}  Qc7 {[%clk 0:02:57]} 8. g3 {[%clk 0:03:00]}  e5 {[%clk 0:02:58]} 9. dxe5 {[%clk 0:03:00]}  Nxe5 {[%clk 0:02:59]} 10. Bf4 {[%clk 0:03:01]}  Nfd7 {[%clk 0:02:59]} 11. Bg2 {[%clk 0:02:56]}  g5 {[%clk 0:02:59]} 12. Nxe5 {[%clk 0:02:55]}  gxf4 {[%clk 0:02:59]} 13. Nxd7 {[%clk 0:02:51]}  O-O-O {[%clk 0:03:00]} 14. Qd4 {[%clk 0:02:45]}  Qxd7 {[%clk 0:03:00]} 15. Qxa7 {[%clk 0:02:42]}  Qd2+ {[%clk 0:02:57]} 16. Kf1 {[%clk 0:02:42]}  Qxb2 {[%clk 0:02:57]} 17. Qa8+ {[%clk 0:02:37]}  Kd7 {[%clk 0:02:57]} 18. Rd1+ {[%clk 0:02:36]}  Bd6 {[%clk 0:02:57]} 19. Qa5 {[%clk 0:02:26]}  Bc2 {[%clk 0:02:52]} 20. Bh3+ {[%clk 0:02:18]}  Ke7 {[%clk 0:02:41]} 21. Qg5+ {[%clk 0:02:17]}  Ke8 {[%clk 0:02:41]} 22. Rxd6 {[%clk 0:02:05]}  Qc1+ {[%clk 0:02:06]} 23. Kg2 {[%clk 0:02:04]}  f3+ {[%clk 0:02:07]} 24. exf3 {[%clk 0:01:57]}  Qxg5 {[%clk 0:02:07]} 25. Re1+ {[%clk 0:01:57]}  Kf8 {[%clk 0:02:07]} 26. f4 {[%clk 0:01:47]}  Qa5 {[%clk 0:02:02]} 27. Re5 {[%clk 0:01:44]}  Qc7 {[%clk 0:02:00]} 28. Rh6 {[%clk 0:01:06]}  Rd6 {[%clk 0:01:57]} 29. Rhh5 {[%clk 0:00:59]}  f6 {[%clk 0:01:50]} 30. Re3 {[%clk 0:00:56]}  Kg7 {[%clk 0:01:39]} 31. Rc5 {[%clk 0:00:55]}  Qf7 {[%clk 0:01:24]} 32. Bg4 {[%clk 0:00:36]}  Re8 {[%clk 0:01:04]} 33. Bh5 {[%clk 0:00:36]}  Bg6 {[%clk 0:01:04]} 34. Bxg6 {[%clk 0:00:32]}  hxg6 {[%clk 0:01:05]} 35. Ne4 {[%clk 0:00:28]}  Rde6 {[%clk 0:01:03]} 36. f3 {[%clk 0:00:27]}  Qe7 {[%clk 0:01:03]} 37. Rec3 {[%clk 0:00:25]}  f5 {[%clk 0:01:01]} 38. Nf2 {[%clk 0:00:20]}  Re2 {[%clk 0:01:02]} 39. Rc2 {[%clk 0:00:18]}  Rxc2 {[%clk 0:01:01]} 40. Rxc2 {[%clk 0:00:18]}  Qb4 {[%clk 0:01:01]} 41. h4 {[%clk 0:00:17]}  Qxa4 {[%clk 0:01:01]} 42. Rb2 {[%clk 0:00:17]}  b5 {[%clk 0:01:00]} 43. Rd2 {[%clk 0:00:17]}  Re7 {[%clk 0:01:00]} 44. h5 {[%clk 0:00:17]}  c5 {[%clk 0:01:00]} 45. hxg6 {[%clk 0:00:16]}  c4 {[%clk 0:01:01]} 46. g4 {[%clk 0:00:14]}  c3 {[%clk 0:00:59]} 47. Rd6 {[%clk 0:00:14]}  Qxf4 {[%clk 0:00:59]} 48. Rc6 {[%clk 0:00:14]}  fxg4 {[%clk 0:00:59]} 49. Nxg4 {[%clk 0:00:14]}  Re2+ {[%clk 0:00:58]} 50. Nf2 {[%clk 0:00:14]}  Rxf2+ {[%clk 0:00:54]} 51. Kxf2 {[%clk 0:00:14]}  Qd2+ {[%clk 0:00:55]} 52. Kg3 {[%clk 0:00:13]}  c2 {[%clk 0:00:55]} 0-1


[Site "https://www.chess.com"]

[Event "Titled Tuesday Blitz July 13 2021"]
[White "Hoffmann, Asa"]
[Black "Mezentsev, Ivan"]
[WhiteFideId "2001470"]
[BlackFideId "13706195"]
[WhiteElo "2117"]
[BlackElo "2295"]
[Result "0-1"]
[Round "08"]
[TimeControl "180+1"]
[Date "2021.07.13"]
[WhiteClock "0:00:21"]
[BlackClock "0:00:44"]

1. d4 {[%clk 0:02:43]}  Nf6 {[%clk 0:02:58]} 2. Bg5 {[%clk 0:02:40]}  c5 {[%clk 0:02:57]} 3. d5 {[%clk 0:02:39]}  Qb6 {[%clk 0:02:56]} 4. Nc3 {[%clk 0:02:39]}  d6 {[%clk 0:02:55]} 5. e4 {[%clk 0:02:38]}  Nbd7 {[%clk 0:02:51]} 6. Bd2 {[%clk 0:02:34]}  g6 {[%clk 0:02:48]} 7. f4 {[%clk 0:02:34]}  Bg7 {[%clk 0:02:47]} 8. Nf3 {[%clk 0:02:34]}  O-O {[%clk 0:02:45]} 9. Bc4 {[%clk 0:02:29]}  a6 {[%clk 0:02:42]} 10. e5 {[%clk 0:02:28]}  dxe5 {[%clk 0:02:38]} 11. fxe5 {[%clk 0:02:28]}  Ng4 {[%clk 0:02:38]} 12. e6 {[%clk 0:02:20]}  Nde5 {[%clk 0:02:37]} 13. exf7+ {[%clk 0:02:14]}  Rxf7 {[%clk 0:02:35]} 14. Be2 {[%clk 0:01:48]}  c4 {[%clk 0:02:31]} 15. Rf1 {[%clk 0:01:45]}  Nxf3+ {[%clk 0:02:22]} 16. Bxf3 {[%clk 0:01:43]}  Nxh2 {[%clk 0:02:20]} 17. Rh1 {[%clk 0:01:35]}  Bg4 {[%clk 0:02:03]} 18. Qe2 {[%clk 0:01:03]}  Nxf3+ {[%clk 0:01:47]} 19. gxf3 {[%clk 0:01:02]}  Bxf3 {[%clk 0:01:47]} 20. Qxc4 {[%clk 0:00:55]}  Bxh1 {[%clk 0:01:27]} 21. O-O-O {[%clk 0:00:54]}  Bf3 {[%clk 0:01:21]} 22. Re1 {[%clk 0:00:53]}  Qd6 {[%clk 0:01:17]} 23. Ne4 {[%clk 0:00:47]}  Bxe4 {[%clk 0:01:16]} 24. Qxe4 {[%clk 0:00:45]}  Rc8 {[%clk 0:01:11]} 25. Bb4 {[%clk 0:00:39]}  Qb6 {[%clk 0:00:56]} 26. c3 {[%clk 0:00:28]}  Bf6 {[%clk 0:00:51]} 27. Qe6 {[%clk 0:00:25]}  Qxe6 {[%clk 0:00:50]} 28. dxe6 {[%clk 0:00:25]}  Rff8 {[%clk 0:00:50]} 29. Rd1 {[%clk 0:00:24]}  Rfd8 {[%clk 0:00:49]} 30. Re1 {[%clk 0:00:23]}  h5 {[%clk 0:00:46]} 31. Kc2 {[%clk 0:00:22]}  h4 {[%clk 0:00:46]} 32. Ba5 {[%clk 0:00:21]}  Rd5 {[%clk 0:00:45]} 33. Bb6 {[%clk 0:00:21]}  Kg7 {[%clk 0:00:44]} 0-1


[Site "https://www.chess.com"]

[Event "Titled Tuesday Blitz July 13 2021"]
[White "Horak, Martin"]
[Black "Sadovsky, Artem"]
[WhiteFideId "367095"]
[BlackFideId "4155840"]
[WhiteElo "1997"]
[BlackElo "2442"]
[Result "0-1"]
[Round "08"]
[TimeControl "180+1"]
[Date "2021.07.13"]
[WhiteClock "0:00:43"]
[BlackClock "0:01:59"]

1. e4 {[%clk 0:03:00]}  g6 {[%clk 0:02:56]} 2. Ke2 {[%clk 0:03:01]}  Bg7 {[%clk 0:02:57]} 3. d4 {[%clk 0:03:00]}  c5 {[%clk 0:02:55]} 4. Be3 {[%clk 0:02:56]}  Nc6 {[%clk 0:02:54]} 5. Nf3 {[%clk 0:02:22]}  Qb6 {[%clk 0:02:43]} 6. d5 {[%clk 0:01:54]}  Qxb2 {[%clk 0:02:30]} 7. dxc6 {[%clk 0:01:13]}  Qxa1 {[%clk 0:02:28]} 8. cxd7+ {[%clk 0:00:52]}  Bxd7 {[%clk 0:02:24]} 9. c3 {[%clk 0:00:53]}  Qxa2+ {[%clk 0:02:18]} 10. Nbd2 {[%clk 0:00:52]}  Bxc3 {[%clk 0:02:09]} 11. Bxc5 {[%clk 0:00:43]}  Nf6 {[%clk 0:01:59]} 0-1


[Site "https://www.chess.com"]

[Event "Titled Tuesday Blitz July 13 2021"]
[White "Iskusnyh, Sergei"]
[Black "Steinberg, Nitzan"]
[WhiteFideId "4120027"]
[BlackFideId "2801795"]
[WhiteElo "2492"]
[BlackElo "2440"]
[Result "1-0"]
[Round "08"]
[TimeControl "180+1"]
[Date "2021.07.13"]
[WhiteClock "0:01:07"]
[BlackClock "0:00:47"]

1. d4 {[%clk 0:03:00]}  Nf6 {[%clk 0:02:58]} 2. c4 {[%clk 0:03:00]}  e6 {[%clk 0:02:57]} 3. g3 {[%clk 0:02:58]}  d5 {[%clk 0:02:57]} 4. Nf3 {[%clk 0:02:56]}  Bb4+ {[%clk 0:02:56]} 5. Bd2 {[%clk 0:02:54]}  Be7 {[%clk 0:02:55]} 6. Bg2 {[%clk 0:02:54]}  O-O {[%clk 0:02:55]} 7. O-O {[%clk 0:02:54]}  Nbd7 {[%clk 0:02:55]} 8. Qc2 {[%clk 0:02:54]}  Ne4 {[%clk 0:02:54]} 9. Nc3 {[%clk 0:02:50]}  Nxd2 {[%clk 0:02:55]} 10. Nxd2 {[%clk 0:02:43]}  c6 {[%clk 0:02:55]} 11. e3 {[%clk 0:02:41]}  f5 {[%clk 0:02:53]} 12. Nf3 {[%clk 0:02:37]}  Bd6 {[%clk 0:02:50]} 13. Ne2 {[%clk 0:02:36]}  g5 {[%clk 0:02:45]} 14. Nc1 {[%clk 0:02:25]}  g4 {[%clk 0:02:41]} 15. Nd2 {[%clk 0:02:25]}  h5 {[%clk 0:02:38]} 16. Nd3 {[%clk 0:02:24]}  h4 {[%clk 0:02:36]} 17. Nf4 {[%clk 0:02:24]}  Rf6 {[%clk 0:02:32]} 18. Rab1 {[%clk 0:02:07]}  Nf8 {[%clk 0:02:27]} 19. b4 {[%clk 0:02:06]}  a6 {[%clk 0:02:12]} 20. a4 {[%clk 0:02:03]}  Nh7 {[%clk 0:02:04]} 21. b5 {[%clk 0:02:01]}  axb5 {[%clk 0:02:02]} 22. axb5 {[%clk 0:02:02]}  Ng5 {[%clk 0:01:55]} 23. bxc6 {[%clk 0:02:01]}  bxc6 {[%clk 0:01:55]} 24. cxd5 {[%clk 0:02:02]}  cxd5 {[%clk 0:01:56]} 25. Rfc1 {[%clk 0:01:47]}  hxg3 {[%clk 0:01:52]} 26. hxg3 {[%clk 0:01:46]}  Ba6 {[%clk 0:01:49]} 27. Qc6 {[%clk 0:01:37]}  Rh6 {[%clk 0:01:47]} 28. Ra1 {[%clk 0:01:21]}  Nh3+ {[%clk 0:01:11]} 29. Bxh3 {[%clk 0:01:18]}  gxh3 {[%clk 0:01:10]} 30. Kh2 {[%clk 0:01:15]}  Bxf4 {[%clk 0:00:56]} 31. exf4 {[%clk 0:01:15]}  Qc8 {[%clk 0:00:45]} 32. Qxc8+ {[%clk 0:01:07]}  Rxc8 {[%clk 0:00:46]} 33. Rxc8+ {[%clk 0:01:07]}  Bxc8 {[%clk 0:00:47]} 34. Ra8 {[%clk 0:01:07]} 1-0


[Site "https://www.chess.com"]

[Event "Titled Tuesday Blitz July 13 2021"]
[White "Kanyamarala, Tarun"]
[Black "Tikhonov, Viacheslav"]
[WhiteFideId "45004714"]
[BlackFideId "44196407"]
[WhiteElo "2086"]
[BlackElo "1773"]
[Result "0-1"]
[Round "08"]
[TimeControl "180+1"]
[Date "2021.07.13"]
[WhiteClock "0:00:02"]
[BlackClock "0:00:15"]

1. e4 {[%clk 0:03:00]}  c5 {[%clk 0:02:59]} 2. Nf3 {[%clk 0:02:58]}  Nc6 {[%clk 0:02:58]} 3. Nc3 {[%clk 0:02:56]}  e5 {[%clk 0:02:58]} 4. Bc4 {[%clk 0:02:55]}  d6 {[%clk 0:02:57]} 5. d3 {[%clk 0:02:55]}  h6 {[%clk 0:02:56]} 6. O-O {[%clk 0:02:49]}  g6 {[%clk 0:02:56]} 7. Nd5 {[%clk 0:02:43]}  Bg7 {[%clk 0:02:51]} 8. c3 {[%clk 0:02:37]}  Nge7 {[%clk 0:02:48]} 9. a4 {[%clk 0:02:35]}  O-O {[%clk 0:02:43]} 10. Be3 {[%clk 0:02:33]}  Kh7 {[%clk 0:02:38]} 11. h3 {[%clk 0:02:16]}  f5 {[%clk 0:02:38]} 12. exf5 {[%clk 0:02:07]}  Nxf5 {[%clk 0:02:32]} 13. Nd2 {[%clk 0:01:48]}  Nce7 {[%clk 0:01:55]} 14. Ne4 {[%clk 0:01:29]}  Be6 {[%clk 0:01:54]} 15. Ndf6+ {[%clk 0:01:17]}  Bxf6 {[%clk 0:01:53]} 16. Bxe6 {[%clk 0:01:16]}  d5 {[%clk 0:01:32]} 17. Bxf5 {[%clk 0:00:54]}  Nxf5 {[%clk 0:01:18]} 18. Nxf6+ {[%clk 0:00:42]}  Qxf6 {[%clk 0:01:17]} 19. Bxc5 {[%clk 0:00:42]}  Rf7 {[%clk 0:01:15]} 20. Qe2 {[%clk 0:00:37]}  b6 {[%clk 0:01:14]} 21. Be3 {[%clk 0:00:20]}  Re8 {[%clk 0:01:13]} 22. a5 {[%clk 0:00:20]}  b5 {[%clk 0:01:10]} 23. Rae1 {[%clk 0:00:17]}  a6 {[%clk 0:01:09]} 24. Bc5 {[%clk 0:00:16]}  Nh4 {[%clk 0:01:06]} 25. f4 {[%clk 0:00:15]}  e4 {[%clk 0:01:04]} 26. Bd4 {[%clk 0:00:14]}  Qf5 {[%clk 0:01:02]} 27. Qf2 {[%clk 0:00:14]}  g5 {[%clk 0:00:49]} 28. fxg5 {[%clk 0:00:14]}  hxg5 {[%clk 0:00:47]} 29. Qg3 {[%clk 0:00:12]}  Qg6 {[%clk 0:00:42]} 30. dxe4 {[%clk 0:00:12]}  Rxf1+ {[%clk 0:00:42]} 31. Rxf1 {[%clk 0:00:12]}  dxe4 {[%clk 0:00:41]} 32. Qc7+ {[%clk 0:00:12]}  Kh6 {[%clk 0:00:40]} 33. Be3 {[%clk 0:00:11]}  Nf5 {[%clk 0:00:37]} 34. Rxf5 {[%clk 0:00:09]}  Qxf5 {[%clk 0:00:36]} 35. Qc6+ {[%clk 0:00:09]}  Re6 {[%clk 0:00:36]} 36. Qc8 {[%clk 0:00:06]}  Kg7 {[%clk 0:00:30]} 37. Qd7+ {[%clk 0:00:05]}  Qf7 {[%clk 0:00:27]} 38. Qd4+ {[%clk 0:00:05]}  Kg6 {[%clk 0:00:27]} 39. Qd8 {[%clk 0:00:05]}  Rf6 {[%clk 0:00:23]} 40. Qd4 {[%clk 0:00:04]}  Rf1+ {[%clk 0:00:21]} 41. Kh2 {[%clk 0:00:04]}  Qc7+ {[%clk 0:00:22]} 42. g3 {[%clk 0:00:05]}  Qe7 {[%clk 0:00:19]} 43. Qd5 {[%clk 0:00:04]}  Rf7 {[%clk 0:00:17]} 44. Qc6+ {[%clk 0:00:04]}  Kg7 {[%clk 0:00:15]} 45. Bd4+ {[%clk 0:00:03]}  Kh7 {[%clk 0:00:16]} 46. Qxe4+ {[%clk 0:00:02]}  Qxe4 {[%clk 0:00:15]} 0-1


[Site "https://www.chess.com"]

[Event "Titled Tuesday Blitz July 13 2021"]
[White "Kolb, Tobias"]
[Black "Markidis, Konstantinos"]
[WhiteFideId "12992321"]
[BlackFideId "4203500"]
[WhiteElo "2110"]
[BlackElo "2304"]
[Result "1-0"]
[Round "08"]
[TimeControl "180+1"]
[Date "2021.07.13"]
[WhiteClock "0:00:29"]
[BlackClock "0:00:24"]

1. e4 {[%clk 0:03:00]}  e6 {[%clk 0:03:00]} 2. d4 {[%clk 0:03:00]}  d5 {[%clk 0:03:00]} 3. exd5 {[%clk 0:03:01]}  exd5 {[%clk 0:03:00]} 4. Qf3 {[%clk 0:03:01]}  Nf6 {[%clk 0:02:59]} 5. h3 {[%clk 0:03:02]}  Be7 {[%clk 0:02:59]} 6. Bd3 {[%clk 0:03:02]}  O-O {[%clk 0:02:58]} 7. Ne2 {[%clk 0:03:02]}  b6 {[%clk 0:02:39]} 8. O-O {[%clk 0:03:00]}  c5 {[%clk 0:02:38]} 9. c3 {[%clk 0:02:59]}  Ba6 {[%clk 0:02:36]} 10. Bxa6 {[%clk 0:02:55]}  Nxa6 {[%clk 0:02:36]} 11. Bf4 {[%clk 0:02:55]}  Nb8 {[%clk 0:02:32]} 12. Nd2 {[%clk 0:02:54]}  Nc6 {[%clk 0:02:32]} 13. Rfe1 {[%clk 0:02:54]}  Rc8 {[%clk 0:02:29]} 14. Rad1 {[%clk 0:02:51]}  cxd4 {[%clk 0:02:25]} 15. Nxd4 {[%clk 0:02:51]}  Nxd4 {[%clk 0:02:25]} 16. cxd4 {[%clk 0:02:51]}  Bb4 {[%clk 0:02:25]} 17. Bg5 {[%clk 0:02:29]}  Rc2 {[%clk 0:01:53]} 18. Re5 {[%clk 0:01:56]}  Bxd2 {[%clk 0:01:34]} 19. Rxd2 {[%clk 0:01:53]}  Rxd2 {[%clk 0:01:31]} 20. Bxd2 {[%clk 0:01:54]}  Ne4 {[%clk 0:01:30]} 21. Bb4 {[%clk 0:01:50]}  Re8 {[%clk 0:01:28]} 22. Rxe8+ {[%clk 0:01:49]}  Qxe8 {[%clk 0:01:28]} 23. Qf5 {[%clk 0:01:50]}  Qd8 {[%clk 0:01:21]} 24. Qe5 {[%clk 0:01:37]}  h6 {[%clk 0:01:21]} 25. f3 {[%clk 0:01:27]}  Ng5 {[%clk 0:01:18]} 26. Be7 {[%clk 0:01:26]}  Qe8 {[%clk 0:01:10]} 27. Bxg5 {[%clk 0:01:23]}  Qxe5 {[%clk 0:01:09]} 28. dxe5 {[%clk 0:01:24]}  hxg5 {[%clk 0:01:09]} 29. Kf2 {[%clk 0:01:23]}  Kf8 {[%clk 0:01:09]} 30. Ke3 {[%clk 0:01:23]}  Ke7 {[%clk 0:01:09]} 31. Kd4 {[%clk 0:01:23]}  Ke6 {[%clk 0:01:09]} 32. g3 {[%clk 0:01:11]}  a6 {[%clk 0:01:06]} 33. b3 {[%clk 0:00:56]}  a5 {[%clk 0:01:02]} 34. f4 {[%clk 0:00:49]}  gxf4 {[%clk 0:00:56]} 35. gxf4 {[%clk 0:00:50]}  Kf5 {[%clk 0:00:56]} 36. Kxd5 {[%clk 0:00:50]}  Kxf4 {[%clk 0:00:57]} 37. e6 {[%clk 0:00:34]}  fxe6+ {[%clk 0:00:55]} 38. Kxe6 {[%clk 0:00:35]}  Kg3 {[%clk 0:00:51]} 39. Kf7 {[%clk 0:00:35]}  g5 {[%clk 0:00:51]} 40. Kf6 {[%clk 0:00:32]}  Kf4 {[%clk 0:00:48]} 41. a4 {[%clk 0:00:29]}  g4 {[%clk 0:00:23]} 42. hxg4 {[%clk 0:00:30]}  Kxg4 {[%clk 0:00:23]} 43. Ke5 {[%clk 0:00:30]}  Kf3 {[%clk 0:00:22]} 44. Kd5 {[%clk 0:00:29]}  Ke3 {[%clk 0:00:23]} 45. Kc6 {[%clk 0:00:28]}  Kd4 {[%clk 0:00:23]} 46. Kxb6 {[%clk 0:00:29]}  Kc3 {[%clk 0:00:23]} 47. Kxa5 {[%clk 0:00:29]}  Kxb3 {[%clk 0:00:24]} 48. Kb5 {[%clk 0:00:29]} 1-0


[Site "https://www.chess.com"]

[Event "Titled Tuesday Blitz July 13 2021"]
[White "Lazavik, Denis"]
[Black "Pruijssers, Roeland"]
[WhiteFideId "13515110"]
[BlackFideId "1013068"]
[WhiteElo "2436"]
[BlackElo "2545"]
[Result "1-0"]
[Round "08"]
[TimeControl "180+1"]
[Date "2021.07.13"]
[WhiteClock "0:00:13"]
[BlackClock "0:00:02"]

1. d4 {[%clk 0:03:00]}  f5 {[%clk 0:02:59]} 2. Nc3 {[%clk 0:02:59]}  Nf6 {[%clk 0:02:59]} 3. Bg5 {[%clk 0:02:58]}  d5 {[%clk 0:02:59]} 4. e3 {[%clk 0:02:57]}  e6 {[%clk 0:02:59]} 5. Nf3 {[%clk 0:02:57]}  a6 {[%clk 0:02:59]} 6. Bd3 {[%clk 0:02:51]}  c5 {[%clk 0:02:57]} 7. O-O {[%clk 0:02:49]}  Nc6 {[%clk 0:02:55]} 8. dxc5 {[%clk 0:02:19]}  Bxc5 {[%clk 0:02:54]} 9. Bf4 {[%clk 0:01:24]}  Ne4 {[%clk 0:02:38]} 10. Ne2 {[%clk 0:01:16]}  g5 {[%clk 0:01:49]} 11. Bg3 {[%clk 0:01:15]}  h5 {[%clk 0:01:28]} 12. c4 {[%clk 0:01:11]}  dxc4 {[%clk 0:01:01]} 13. Bxc4 {[%clk 0:01:02]}  Qxd1 {[%clk 0:00:59]} 14. Rfxd1 {[%clk 0:01:03]}  f4 {[%clk 0:00:58]} 15. Bxf4 {[%clk 0:00:42]}  gxf4 {[%clk 0:00:57]} 16. Nxf4 {[%clk 0:00:43]}  Kf7 {[%clk 0:00:51]} 17. Bd3 {[%clk 0:00:41]}  Nd6 {[%clk 0:00:43]} 18. Rac1 {[%clk 0:00:40]}  Ba7 {[%clk 0:00:40]} 19. Ng5+ {[%clk 0:00:36]}  Kf6 {[%clk 0:00:38]} 20. Nh7+ {[%clk 0:00:33]}  Kf7 {[%clk 0:00:32]} 21. Bg6+ {[%clk 0:00:28]}  Ke7 {[%clk 0:00:32]} 22. Bb1 {[%clk 0:00:28]}  Rd8 {[%clk 0:00:21]} 23. Ng6+ {[%clk 0:00:23]}  Kf7 {[%clk 0:00:22]} 24. Ng5+ {[%clk 0:00:24]}  Kg7 {[%clk 0:00:19]} 25. Nf4 {[%clk 0:00:23]}  Kf6 {[%clk 0:00:15]} 26. Nh7+ {[%clk 0:00:21]}  Kf7 {[%clk 0:00:14]} 27. Nxh5 {[%clk 0:00:20]}  Nf5 {[%clk 0:00:11]} 28. Rxd8 {[%clk 0:00:17]}  Nxd8 {[%clk 0:00:11]} 29. Rc7+ {[%clk 0:00:18]}  Kg6 {[%clk 0:00:07]} 30. Nf4+ {[%clk 0:00:15]}  Kh6 {[%clk 0:00:07]} 31. Nf8 {[%clk 0:00:13]}  Ng7 {[%clk 0:00:06]} 32. g4 {[%clk 0:00:12]}  e5 {[%clk 0:00:01]} 33. g5+ {[%clk 0:00:11]}  Kxg5 {[%clk 0:00:01]} 34. Rxg7+ {[%clk 0:00:12]}  Kf6 {[%clk 0:00:02]} 35. Nh5# {[%clk 0:00:13]} 1-0


[Site "https://www.chess.com"]

[Event "Titled Tuesday Blitz July 13 2021"]
[White "Liu, Manli"]
[Black "Kononenko, Dmitry"]
[WhiteFideId "8608121"]
[BlackFideId "14113538"]
[WhiteElo "2061"]
[BlackElo "2289"]
[Result "1-0"]
[Round "08"]
[TimeControl "180+1"]
[Date "2021.07.13"]
[WhiteClock "0:00:19"]
[BlackClock "0:00:05"]

1. e4 {[%clk 0:03:00]}  c6 {[%clk 0:02:55]} 2. Nc3 {[%clk 0:02:57]}  d5 {[%clk 0:02:56]} 3. Nf3 {[%clk 0:02:56]}  Bg4 {[%clk 0:02:56]} 4. h3 {[%clk 0:02:56]}  Bxf3 {[%clk 0:02:56]} 5. Qxf3 {[%clk 0:02:56]}  e6 {[%clk 0:02:57]} 6. Be2 {[%clk 0:02:54]}  Nd7 {[%clk 0:02:54]} 7. d4 {[%clk 0:02:53]}  g6 {[%clk 0:02:51]} 8. O-O {[%clk 0:02:48]}  Bg7 {[%clk 0:02:51]} 9. Be3 {[%clk 0:02:13]}  Ne7 {[%clk 0:02:50]} 10. Rad1 {[%clk 0:02:00]}  O-O {[%clk 0:02:48]} 11. Bg5 {[%clk 0:01:45]}  Re8 {[%clk 0:02:47]} 12. Qe3 {[%clk 0:01:38]}  Qb6 {[%clk 0:02:39]} 13. b3 {[%clk 0:01:13]}  Qa5 {[%clk 0:02:36]} 14. a4 {[%clk 0:01:09]}  c5 {[%clk 0:02:22]} 15. Bxe7 {[%clk 0:00:53]}  Rxe7 {[%clk 0:02:18]} 16. Nb5 {[%clk 0:00:32]}  cxd4 {[%clk 0:02:18]} 17. Nxd4 {[%clk 0:00:32]}  dxe4 {[%clk 0:02:17]} 18. Qxe4 {[%clk 0:00:32]}  Nf6 {[%clk 0:02:10]} 19. Qf3 {[%clk 0:00:32]}  Rc8 {[%clk 0:02:07]} 20. Rd3 {[%clk 0:00:31]}  Nd5 {[%clk 0:02:03]} 21. c4 {[%clk 0:00:29]}  Nb4 {[%clk 0:01:59]} 22. Rdd1 {[%clk 0:00:28]}  e5 {[%clk 0:01:58]} 23. Nb5 {[%clk 0:00:28]}  e4 {[%clk 0:01:58]} 24. Qe3 {[%clk 0:00:28]}  a6 {[%clk 0:01:55]} 25. Nd6 {[%clk 0:00:27]}  Rc6 {[%clk 0:01:50]} 26. f3 {[%clk 0:00:24]}  Nc2 {[%clk 0:01:45]} 27. Qa7 {[%clk 0:00:18]}  Be5 {[%clk 0:01:08]} 28. Nxe4 {[%clk 0:00:15]}  Qb6+ {[%clk 0:00:51]} 29. Qxb6 {[%clk 0:00:15]}  Rxb6 {[%clk 0:00:52]} 30. Rd3 {[%clk 0:00:15]}  f5 {[%clk 0:00:45]} 31. Nf2 {[%clk 0:00:13]}  Nd4 {[%clk 0:00:42]} 32. Bd1 {[%clk 0:00:12]}  a5 {[%clk 0:00:42]} 33. f4 {[%clk 0:00:12]}  Bf6 {[%clk 0:00:39]} 34. g3 {[%clk 0:00:12]}  Rbe6 {[%clk 0:00:35]} 35. Kg2 {[%clk 0:00:12]}  b6 {[%clk 0:00:35]} 36. Bf3 {[%clk 0:00:11]}  Kg7 {[%clk 0:00:34]} 37. Rfd1 {[%clk 0:00:11]}  Nxf3 {[%clk 0:00:21]} 38. Kxf3 {[%clk 0:00:12]}  h6 {[%clk 0:00:19]} 39. g4 {[%clk 0:00:12]}  Rc6 {[%clk 0:00:16]} 40. Rd7 {[%clk 0:00:11]}  Kf7 {[%clk 0:00:15]} 41. Rxe7+ {[%clk 0:00:11]}  Kxe7 {[%clk 0:00:16]} 42. Rd5 {[%clk 0:00:11]}  fxg4+ {[%clk 0:00:15]} 43. hxg4 {[%clk 0:00:12]}  Re6 {[%clk 0:00:14]} 44. Ne4 {[%clk 0:00:13]}  Bg7 {[%clk 0:00:13]} 45. f5 {[%clk 0:00:13]}  gxf5 {[%clk 0:00:13]} 46. gxf5 {[%clk 0:00:14]}  Rc6 {[%clk 0:00:13]} 47. Kf4 {[%clk 0:00:14]}  Bf6 {[%clk 0:00:12]} 48. Rd3 {[%clk 0:00:13]}  h5 {[%clk 0:00:12]} 49. Rh3 {[%clk 0:00:13]}  h4 {[%clk 0:00:11]} 50. Nxf6 {[%clk 0:00:14]}  Rxf6 {[%clk 0:00:10]} 51. Rxh4 {[%clk 0:00:14]}  Rd6 {[%clk 0:00:09]} 52. Ke5 {[%clk 0:00:14]}  Rd3 {[%clk 0:00:09]} 53. Rh7+ {[%clk 0:00:15]}  Kf8 {[%clk 0:00:08]} 54. Kf6 {[%clk 0:00:15]}  Kg8 {[%clk 0:00:08]} 55. Rg7+ {[%clk 0:00:15]}  Kf8 {[%clk 0:00:07]} 56. Rb7 {[%clk 0:00:15]}  Rd6+ {[%clk 0:00:07]} 57. Ke5 {[%clk 0:00:15]}  Rc6 {[%clk 0:00:08]} 58. f6 {[%clk 0:00:15]}  Rc5+ {[%clk 0:00:07]} 59. Kd6 {[%clk 0:00:15]}  Rf5 {[%clk 0:00:07]} 60. Rxb6 {[%clk 0:00:16]}  Rxf6+ {[%clk 0:00:08]} 61. Kc7 {[%clk 0:00:16]}  Rf3 {[%clk 0:00:08]} 62. Kb7 {[%clk 0:00:16]}  Ke7 {[%clk 0:00:08]} 63. Ka6 {[%clk 0:00:17]}  Kd7 {[%clk 0:00:09]} 64. Kxa5 {[%clk 0:00:17]}  Kc7 {[%clk 0:00:09]} 65. b4 {[%clk 0:00:17]}  Rf5+ {[%clk 0:00:09]} 66. b5 {[%clk 0:00:18]}  Rf4 {[%clk 0:00:09]} 67. Rc6+ {[%clk 0:00:17]}  Kb7 {[%clk 0:00:09]} 68. c5 {[%clk 0:00:17]}  Rf1 {[%clk 0:00:08]} 69. Rd6 {[%clk 0:00:18]}  Kc7 {[%clk 0:00:08]} 70. Re6 {[%clk 0:00:18]}  Rc1 {[%clk 0:00:07]} 71. Re7+ {[%clk 0:00:18]}  Kd8 {[%clk 0:00:07]} 72. Re5 {[%clk 0:00:17]}  Kc7 {[%clk 0:00:07]} 73. Rf5 {[%clk 0:00:17]}  Rc2 {[%clk 0:00:07]} 74. Rf7+ {[%clk 0:00:17]}  Kb8 {[%clk 0:00:07]} 75. c6 {[%clk 0:00:18]}  Rb2 {[%clk 0:00:06]} 76. Kb6 {[%clk 0:00:18]}  Rxb5+ {[%clk 0:00:05]} 77. axb5 {[%clk 0:00:19]} 1-0


[Site "https://www.chess.com"]

[Event "Titled Tuesday Blitz July 13 2021"]
[White "Maly, Alexey"]
[Black "Senthil Maran K"]
[WhiteFideId "14103184"]
[BlackFideId "25035681"]
[WhiteElo "2285"]
[BlackElo "2194"]
[Result "1-0"]
[Round "08"]
[TimeControl "180+1"]
[Date "2021.07.13"]
[WhiteClock "0:02:23"]
[BlackClock "0:00:06"]

1. d4 {[%clk 0:03:00]}  d5 {[%clk 0:02:58]} 2. c4 {[%clk 0:03:01]}  e6 {[%clk 0:02:58]} 3. Nf3 {[%clk 0:03:01]}  Nf6 {[%clk 0:02:59]} 4. e3 {[%clk 0:03:01]}  a6 {[%clk 0:02:56]} 5. Nbd2 {[%clk 0:03:01]}  Nbd7 {[%clk 0:02:52]} 6. Bd3 {[%clk 0:03:01]}  dxc4 {[%clk 0:02:52]} 7. Nxc4 {[%clk 0:03:01]}  b5 {[%clk 0:02:52]} 8. Nce5 {[%clk 0:03:01]}  Bb7 {[%clk 0:02:52]} 9. O-O {[%clk 0:03:00]}  c5 {[%clk 0:02:52]} 10. b3 {[%clk 0:02:59]}  Be7 {[%clk 0:02:49]} 11. Bb2 {[%clk 0:02:55]}  O-O {[%clk 0:02:49]} 12. a4 {[%clk 0:02:55]}  cxd4 {[%clk 0:02:21]} 13. Bxd4 {[%clk 0:02:54]}  Nxe5 {[%clk 0:02:06]} 14. Nxe5 {[%clk 0:02:55]}  b4 {[%clk 0:01:36]} 15. Qe2 {[%clk 0:02:50]}  Nd5 {[%clk 0:01:26]} 16. Qh5 {[%clk 0:02:38]}  Nf6 {[%clk 0:00:25]} 17. Qh3 {[%clk 0:02:38]}  Bd6 {[%clk 0:00:16]} 18. Rad1 {[%clk 0:02:29]}  Qe7 {[%clk 0:00:13]} 19. Nc6 {[%clk 0:02:24]}  Bxc6 {[%clk 0:00:08]} 20. Bxf6 {[%clk 0:02:24]}  Bxh2+ {[%clk 0:00:06]} 21. Qxh2 {[%clk 0:02:23]} 1-0


[Site "https://www.chess.com"]